Cogmind - Beta 16 @@@ ROGUE MODE // 2026.01.03 @ 21:20:55 Player: Cog Result: Destroyed by G-47 Trooper with Particle Gun Performance ------------- Evolutions (0) 0 Regions Visited (2) 400 Robots Destroyed (5) 25 Value Destroyed (111) 111 Prototype IDs (0) 0 Alien Tech Used (0) 0 Bonus (-31) -31 TOTAL SCORE: 505 Bonus ------- Friendly Fire -31 Cogmind --------- Core Integrity 0/250 Matter 162/300 Energy 111/125 System Corruption 4% Temperature Cool (9) Movement Walking (680) Ox8 Location -10/Mines Parts ------- > --- POWER (1) -------- Light Ion Engine > --- PROPULSION (2) --- Aluminum Leg > --- UTILITY (2) ------ Small Storage Unit Huge Storage Unit > --- WEAPON (2) ------- Light Assault Rifle > --- INVENTORY (25) --- (None) Peak State ------------ > --- POWER ------------ Ion Engine > --- PROPULSION ------- Aluminum Leg Aluminum Leg > --- UTILITY ---------- Small Storage Unit Light Armor Plating > --- WEAPON ----------- Light Assault Rifle Light Assault Rifle > --- INVENTORY -------- Light Ion Engine Light Ion Engine Wheel Wheel Huge Storage Unit Small Laser Grenade Launcher Grenade Launcher [Rating: 7] Favorites ----------- Power Ion Engine Engine Ion Engine Propulsion Aluminum Leg Leg Aluminum Leg Wheel Wheel Utility Small Storage Unit Storage Small Storage Unit Protection Light Armor Plating Weapon Light Assault Rifle Ballistic Gun Light Assault Rifle Launcher Grenade Launcher Build | -11 -10 -10 ------- Run | Yrd Mat Min Slots Evolved . | . . . Power . | . . . Propulsion . | . . . Utility . | . . . Weapon . | . . . Parts Attached 15 | 6 2 7 Power 3 | 1 . 2 Engine 3 | 1 . 2 Core . | . . . Reactor . | . . . Propulsion 5 | 2 . 3 Treads . | . . . Leg 3 | 2 . 1 Wheel 2 | . . 2 Hover . | . . . Flight . | . . . Utility 3 | 1 1 1 Device . | . . . Storage 2 | 1 . 1 Processor . | . . . Hackware . | . . . Protection 1 | . 1 . Artifact . | . . . Weapon 4 | 2 1 1 Energy Gun . | . . . Energy Cannon . | . . . Ballistic Gun 2 | 2 . . Ballistic Cannon . | . . . Launcher 2 | . 1 1 Special Weapon . | . . . Impact Weapon . | . . . Slashing Weapon . | . . . Piercing Weapon . | . . . Special Melee Weapon . | . . . Unidentified Prototypes . | . . . Parts Lost 10 | . . 10 Power 2 | . . 2 Propulsion 4 | . . 4 Utility 1 | . . 1 Weapon 3 | . . 3 Highest Loss Streak 10 | . . 10 To Critical Strikes . | . . . Average Backups 6 | 3 7 5 Power 1 | . 1 1 Propulsion 2 | 1 2 2 Utility . | . . . Weapon 1 | . 2 1 Tool/Special . | . . . Unused Backups 1 | . 1 . Power . | . . . Propulsion . | . . . Utility . | . . . Weapon 1 | . 1 . Tool/Special . | . . . Average Slot Usage (%) 87 | . 91 76 Engine 13 | . 14 11 Leg 26 | . 28 21 Storage 14 | . 14 15 Protection 7 | . 6 9 Ballistic Gun 21 | . 25 11 Launcher 3 | . 3 5 Peak Build Rating 7 | 6 7 7 Average Rating 5 | 4 6 5 On Entrance 4 | . 6 7 Avg Prop Armor Cover (%) . | . . . Naked Turns . | . . . Heaviest Build 17 | 12 17 17 Greatest Support 20 | 20 20 20 Greatest Overweight (x) 2 | . . 2 Average Overweight (x) . | . . . Largest Inventory Capacity 25 | 8 8 25 Average Capacity 8 | 6 8 9 Most Carried 8 | 5 8 8 Average Carried 6 | 3 7 5 Final Capacity 25 | 8 8 25 Final Carried 8 | 4 8 . Class Distribution -------------------- 100% | Mutant Dominant Class ---------------- Mutant | -10/Materials Mutant | -10/Mines Resources | -11 -10 -10 ----------- Run | Yrd Mat Min Matter Collected 312 | 232 45 35 Remotely . | . . . Salvage Created 118 | . 29 89 Parts 3 | . 3 . Haulers Intercepted . | . . . Recyclers Shooed . | . . . Parts Field Recycled . | . . . Retrieved Matter . | . . . Parts Self-Destructed . | . . . Prevented . | . . . Parts Restored . | . . . Kills | -11 -10 -10 ------- Run | Yrd Mat Min Combat Hostiles Destroyed 22 | . 5 17 Guns 3 | . . 3 AOE 19 | . 5 14 Classes Destroyed 3 | . 2 1 Swarmer 3 | . 3 . Grunt 2 | . 2 . Assembled 17 | . . 17 Best Kill Streak 16 | . 3 16 Combat Bots Only 16 | . 3 16 Max Kills in Single Turn 8 | . 3 8 Gunslinging . | . . . Exploded 8 | . 3 8 Melee . | . . . Uniques/NPCs Destroyed . | . . . Combat | -11 -10 -10 -------- Run | Yrd Mat Min Hostile Shots Fired 76 | . 14 62 Missed 27 | . 5 22 Hits 49 | . 9 40 Melee 1 | . . 1 Projectile 48 | . 9 39 AOE 12 | . . 12 Critical Strikes 1 | . . 1 Damage Taken 1107 | . 199 908 Core 250 | . 57 193 Absorbed by Shields . | . . . Core Remaining (%) 100 | 100 . . Volleys Fired 29 | . 9 20 Largest 2 | . 2 2 Hottest 50 | . 50 50 Shots Fired 40 | . 17 23 Gun 30 | . 10 20 Cannon . | . . . Launcher 10 | . 7 3 Special . | . . . Kinetic 30 | . 10 20 Thermal . | . . . Explosive 10 | . 7 3 Electromagnetic . | . . . Robot Hit Streak 5 | . 3 5 Robot Miss Streak 3 | . 2 3 Penetration Max . | . . . Secondary Targets . | . . . Shots Hit Robots 23 | . 9 14 Core Hits 44 | . 10 34 Critical Kills . | . . . Critical Parts Destroyed . | . . . Critical Strikes . | . . . Melee Attacks . | . . . Impact . | . . . Slashing . | . . . Piercing . | . . . Sneak Attacks . | . . . Combat Hostiles . | . . . Follow-up Attacks . | . . . Damage Inflicted 1286 | . 492 794 Guns 134 | . 22 112 Cannons . | . . . Explosions 1152 | . 470 682 Melee . | . . . Ramming . | . . . Kinetic 134 | . 22 112 Thermal . | . . . Explosive 1152 | . 470 682 Electromagnetic . | . . . Impact . | . . . Slashing . | . . . Piercing . | . . . Highest Corruption 4 | . . 4 Average Corruption 4 | . . 4 Corruption Purged . | . . . Corruption Blocked . | . . . Effects 2 | . . 2 Message Errors 1 | . . 1 Energy Discharges 1 | . . 1 Overload Shots . | . . . Overflow Damage 26 | . . 26 Projectiles . | . . . Explosions 26 | . . 26 Melee . | . . . Knockbacks . | . . . Impact . | . . . Kinetic . | . . . Secondary . | . . . Self-Inflicted Damage 83 | . 38 45 Shots 4 | . 1 3 Rammed . | . . . Targets Rammed . | . . . Kicked . | . . . Crushed . | . . . Highest Temperature 86 | . 86 25 Average Temperature 20 | . 30 10 Received Heat Transfer 139 | . 57 82 Siege Activations . | . . . Martial Activations . | . . . Shielding Activations . | . . . Robots Disrupted . | . . . Combat Hostiles . | . . . Robots Corrupted . | . . . Combat Hostiles . | . . . Parts Fried . | . . . Impact Corruptions . | . . . Robots Melted . | . . . Combat Hostiles . | . . . Parts Melted . | . . . Heat Transferred . | . . . Parts Sabotaged . | . . . Parts Stolen . | . . . Parts Stripped . | . . . Power Chain Reactions . | . . . Alert | -11 -10 -10 ------- Run | Yrd Mat Min Maximum Alert Level . | . . . Low Security (%) 100 | 100 100 100 Level 1 . | . . . Level 2 . | . . . Level 3 . | . . . Level 4 . | . . . Level 5 . | . . . High Security . | . . . Max Security . | . . . Peak Influence 138 | . 138 48 Initial 45 | . . 45 Average 18 | . 23 17 Influence Increases 161 | . 148 13 Destroy 0b10 Robot/C 100 | . 100 . Destroy Leader 20 | . 20 . Destroy Structure 41 | . 28 13 Influence Decreases 161 | . 30 131 Entered New Map 73 | . . 73 Time Decay 58 | . 30 28 Lost Part 30 | . . 30 Squads Dispatched . | . . . Investigation . | . . . Extermination . | . . . Reinforcement . | . . . Assault . | . . . Garrison . | . . . Intercept . | . . . Searches Triggered . | . . . Construction Impeded . | . . . Haulers Reinforced . | . . . Active Scanning Responses . | . . . Cargo Convoy Interrupts . | . . . Stealth | -11 -10 -10 --------- Run | Yrd Mat Min Distress Signals . | . . . Communications Jammed . | . . . Distress Signals . | . . . Times Spotted 31 | . 6 25 Peak Tracking Total 18 | . 4 18 Tactical Retreats . | . . . Traps | -11 -10 -10 ------- Run | Yrd Mat Min Traps Triggered 1 | . 1 . Indirectly . | . . . Trap Hack Attempts . | . . . Triggered . | . . . Disarmed . | . . . Reprogrammed . | . . . Reused . | . . . Traps Extracted . | . . . Installed . | . . . Triggered . | . . . Machines | -11 -10 -10 ---------- Run | Yrd Mat Min Machines Disabled . | . . . Max in Single Turn . | . . . Machines Repaired . | . . . Machines Dismantled . | . . . Machines Sabotaged . | . . . Overloaded Fab Kills . | . . . Hacking | -11 -10 -10 --------- Run | Yrd Mat Min Machines Accessed 1 | . 1 . Terminals . | . . . Fabricators . | . . . Repair Stations . | . . . Recycling Units 1 | . 1 . Scanalyzers . | . . . Garrison Access . | . . . Total Hacks 2 | . 2 . Successful 1 | . 1 . Failed 1 | . 1 . Catastrophic . | . . . Database Lockouts . | . . . Manual . | . . . Terminals . | . . . Fabricators . | . . . Repair Stations . | . . . Recycling Units 2 | . 2 . Scanalyzers . | . . . Garrison Access . | . . . Terminal Hacks . | . . . Fabricator Hacks . | . . . Repair Station Hacks . | . . . Recycling Unit Hacks 1 | . 1 . Retrieve Components 1 | . 1 . Scanalyzer . | . . . Garrison Access Hacks . | . . . Unauthorized Hacks . | . . . Terminals . | . . . Fabricators . | . . . Repair Stations . | . . . Recycling Units . | . . . Scanalyzers . | . . . Garrison Access . | . . . Data Cores Recovered . | . . . Used . | . . . Hacking Detections . | . . . Full Trace Events . | . . . Feedback Events . | . . . Feedback Blocked . | . . . Robot Schematics Acquired . | . . . Robots Built . | . . . Authchips . | . . . Time . | . . . Total Robot Build Rating . | . . . Part Schematics Acquired . | . . . Parts Built . | . . . Authchips . | . . . Time . | . . . Total Part Build Rating . | . . . Part Studies Acquired . | . . . Parts Repaired . | . . . Time . | . . . Parts Recycled . | . . . Recycled Matter . | . . . Retrieved Matter . | . . . Retrieved Components . | . . . Parts Scanalyzed . | . . . Part Schematics Acquired . | . . . Parts Damaged . | . . . Bothacking | -11 -10 -10 ------------ Run | Yrd Mat Min Used RIF Installer . | . . . Robots Hacked . | . . . Non-combat . | . . . Combat . | . . . Robot Hacks Applied . | . . . Relay Couplers Released . | . . . Fabnet Peak Effective % . | . . . Robots Rewired . | . . . Allies Hacked . | . . . Hacks Repelled . | . . . Allies | -11 -10 -10 -------- Run | Yrd Mat Min Total Allies . | . . . Largest Group . | . . . Highest-Rated Group . | . . . Highest-Rated Ally . | . . . Total Orders . | . . . Ally Attacks . | . . . Total Damage . | . . . Kills . | . . . Allies Corrupted . | . . . Allies Melted . | . . . Intel | -11 -10 -10 ------- Run | Yrd Mat Min Active Infowar (turns) . | . . . Robot Analysis Total . | . . . Derelict Logs Recovered . | . . . Drone Launches . | . . . Drone Recoveries . | . . . Exploration | -11 -10 -10 ------------- Run | Yrd Mat Min Turns Passed 420 | 67 262 91 Spaces Moved 279 | 52 188 39 Core 17 | 15 . 2 Treads . | . . . Legs 251 | 37 188 26 Wheels 11 | . . 11 Hover . | . . . Flight . | . . . Fastest Speed 50 | 50 120 80 Average Speed 114 | 99 120 110 Slowest Speed 150 | 120 120 150 Overloaded Moves . | . . . Propulsion Burnouts . | . . . Robots Hopped . | . . . Potential Cave-ins . | . . . Cave-ins Triggered . | . . . Exploration Rate (%) 20 | 4 42 16 Regions Visited 2 Branch Regions 1 Pre-discovered Areas 1 | . . 1 Known Exits Taken . | . . . Unknown Exits Taken 2 | 1 1 . Scrap Searched . | . . . Spaces Dug . | . . . Terrain Destroyed 43 | . 27 16 Melee . | . . . Projectile . | . . . AOE 43 | . 27 16 Terrain Rammed . | . . . Walls Destroyed . | . . . Machines Disabled . | . . . Actions | -11 -10 -10 --------- Run | Yrd Mat Min Total 344 | 67 209 68 Wait 5 | . 5 . Move 277 | 51 187 39 Hop . | . . . Pick Up 15 | 10 5 . Fast Attach 1 | . 1 . Attach 14 | 6 . 8 Detach . | . . . Swap 2 | . 1 1 Drop 1 | . 1 . Fire 29 | . 9 20 Melee . | . . . Ram . | . . . Kick . | . . . Crush . | . . . Escape Stasis . | . . . Rewire . | . . . Trap . | . . . Miscellaneous . | . . . Route ------- -11/Scrapyard -10/Materials -10/Mines History --------- Turn | Location | Event 2 | -11/Scrapyard | Met Revision 17 6 | -11/Scrapyard | Discovered new exit (range 16) 68 | -11/Scrapyard | Entered Materials 202 | -10/Materials | Discovered new exit (range 13) 311 | -10/Materials | Build established: Mutant 330 | -10/Materials | Entered Mines 331 | -10/Mines | Learned location of Storage (-9) 331 | -10/Mines | Assembled infested the area 336 | -10/Mines | Assisted by a Guerilla fighting off Assembled 370 | -10/Mines | Destroyed 16 combat bots 397 | -10/Mines | Core integrity fell below 50% 405 | -10/Mines | Core integrity fell below 20% 421 | -10/Mines | Destroyed by G-47 Trooper with Particle Gun Last Messages --------------- as-41020 destroyed. System corrupted: Energy discharge (-30). Acquired 2 matter. The unstable cave ceiling collapses. Acquired 18 matter. Acquired 7 matter. C-45 Heavy ARC bursts open, deploying its payload. D-53 Grenadier unfolds itself. Lgt. Armor Plating destroyed. /J8IJR:IWATP/IKGDQ 6GS0M4CAMA Aluminum Leg destroyed. Lgt. Assault Rifle destroyed. The unstable cave ceiling collapses. Wheel destroyed. The unstable cave ceiling collapses. Lgt. Ion Engine destroyed. Laser Drill disabled. The unstable cave ceiling collapses. Wheel destroyed. Map ----- +----------------------------------------------------+ | | | | | | | | | | | | | | | | | | | | | | | | | | | | | | | | | | | | | | | | | | | ?????????????????????????????????????????? | | ????????????????????????????########?????? | | ???????????????####???????? #?????? | | ??????????????## ######### """ #?????? | | ??????????????# ## @g """ #?????? | | ?????????????## ## ### """ #?????? | | ?????????????# # #?????? | | ????????????## #? """ #?????? | | ???????????## # """ #?????? | | ???????????# "" #?????? | | ??????????## # # # #?????? | | ??????????# # #?????? | | ??????????## % #?????? | | ??????????# # # ## #######?????? | | ??????????### = # # #???????????? | | ??????????## ##? ???????????? | | ??????????##]* % # #??##??????????? | | ???????????# ##??????????????? | | ???????????# " ##???????????????? | | ???????????# #????????????????? | | ????????? #????????????????? | | ??????? ???????????????? | | ?????? #### ## ?????????????? | | ????? ???###### ### #????????????? | | ????? ?????????# #???#????????????? | | ???? ??????????# #???????????????? | | ???? ??????????## ???????????????? | | ????# ????????????# ??????????????? | | ????? ??????????????# ??????????????? | +----------------------------------------------------+ Best States ------------- Heat Dissipation 25 Energy Generation 10 Energy Capacity 250 Matter Stores 300 Matter Capacity 300 Sight Range 16 Terrain Scan Density 10 Armor Coverage 150 Evasion (%) 55 Item Schematics ----------------- None Robot Schematics ------------------ None Fabricated ------------ Nothing Repaired ---------- Nothing Studied --------- None Alien Tech Used ----------------- None Achievements -------------- DATA ERROR: Steam Global Achievement% Exterminator There's More Where That Came From You Again Challenges ------------ None Game ------ Seed BlastAerolevBank Manual? 0 Play Time 00:08:20 Cumulative 20.7 hours Start 2026.01.03 @ 21:14:21 End 2026.01.03 @ 21:20:55 Sessions 1 Manual Loads 0 Difficulty Rogue Special Mode None Game No. 32 Rogue 32 Adventurer 0 Explorer 0 Win Type - Total 0 Types 0/0/0/0/0/0/0/0/0/0 Lore% 12 Gallery% 19 Achievement% 10 Wizard Run 0 Options --------- Layout 1 ASCII 0 Keyboard 0 Movement Mouse Keybinds 0 Fullscreen 1 Font 32/SmallcapsGlow Map View 50x35 Zoom Use 0% Tactical HUD 0 Map Filters NONE Filters NONE Steam 1 RUN: f81e9aac-5628-449d-aa8b-6db9600de3af